bitfinex-derivatives/quotes_BTCF0:USTF0_20250809
["timestamp","ask_amount","ask_price","bid_price","bid_amount"]
[1754768128327,1.43468526,116670.0,116660.0,0.58389511]
[1754768131324,1.43468526,116670.0,116660.0,0.25062105]
[1754768131518,1.1014112,116670.0,116660.0,0.58389511]
[1754768131720,1.43468526,116670.0,116660.0,0.58389511]
[1754768132325,1.43468526,116670.0,116660.0,0.25062105]
[1754768132827,1.43468526,116670.0,116660.0,0.58389511]
[1754768133228,1.1014112,116670.0,116660.0,0.58389511]
[1754768133430,1.43468526,116670.0,116660.0,0.58389511]
[1754768134532,1.1014112,116670.0,116660.0,0.58389511]
[1754768134732,1.43468526,116670.0,116660.0,0.58389511]
[1754768135627,1.43468526,116670.0,116660.0,0.69193653]
[1754768138130,1.43468526,116670.0,116660.0,0.35866247]
[1754768138333,1.43468526,116670.0,116660.0,0.69193653]
[1754768138718,1.43468526,116670.0,116660.0,1.05273653]
[1754768138920,1.43468526,116670.0,116660.0,0.94469511]
[1754768139724,1.43468526,116670.0,116660.0,0.48893105]
[1754768139926,1.43468526,116670.0,116660.0,0.51374105]
[1754768140334,1.43468526,116670.0,116660.0,0.84701511]
[1754768140527,1.43468526,116670.0,116660.0,0.88133511]
[1754768140729,1.43468526,116670.0,116660.0,0.94415511]
[1754768143331,1.43468526,116670.0,116660.0,0.61088105]
[1754768143539,1.43468526,116670.0,116660.0,0.94415511]
[1754768143836,1.43468526,116670.0,116660.0,0.61088105]
[1754768144036,1.43468526,116670.0,116660.0,0.94415511]
[1754768144534,1.43468526,116670.0,116660.0,0.61088105]
[1754768145632,1.43468526,116670.0,116660.0,0.94415511]
[1754768147432,1.43468526,116670.0,116660.0,0.58335511]
[1754768149133,1.43468526,116670.0,116660.0,0.73731383]
[1754768149830,1.43468526,116670.0,116660.0,0.40403977]
[1754768150031,1.1014112,116670.0,116660.0,0.40403977]
[1754768150236,1.43468526,116670.0,116660.0,0.73731383]
[1754768152439,1.43468526,116670.0,116660.0,0.58335511]
[1754768153044,1.43468526,116670.0,116660.0,0.25008105]
[1754768153342,1.43468526,116670.0,116660.0,0.73731383]
[1754768155640,1.43468526,116670.0,116660.0,0.58335511]
[1754768156844,1.1014112,116670.0,116660.0,0.58335511]
[1754768157044,1.43468526,116670.0,116660.0,0.25008105]
[1754768157244,1.43468526,116670.0,116660.0,0.58335511]
[1754768157846,1.43468526,116670.0,116660.0,0.94415511]
[1754768158046,1.43468526,116670.0,116660.0,0.25008105]
[1754768158246,1.43468526,116670.0,116660.0,0.58335511]
[1754768158644,1.43468526,116670.0,116660.0,0.94415511]
[1754768159148,1.43468526,116670.0,116660.0,0.58335511]
[1754768160948,1.43468526,116670.0,116660.0,0.94415511]
[1754768161136,1.43468526,116670.0,116660.0,0.58335511]
[1754768161544,1.43468526,116670.0,116660.0,0.94415511]
[1754768161750,1.43468526,116670.0,116660.0,0.61088105]
[1754768161946,1.43468526,116670.0,116660.0,0.58335511]
[1754768164849,1.1014112,116670.0,116660.0,0.58335511]
[1754768165154,1.43468526,116670.0,116660.0,0.58335511]
[1754768165655,1.43468526,116670.0,116660.0,0.25008105]
[1754768165855,1.43468526,116670.0,116660.0,0.58335511]
[1754768166252,1.43468526,116670.0,116660.0,0.73731383]
[1754768167058,1.43468526,116670.0,116660.0,1.09811383]
[1754768167451,1.43468526,116670.0,116660.0,0.73731383]
[1754768168356,1.43468526,116670.0,116660.0,0.63905383]
[1754768168855,1.43468526,116670.0,116660.0,0.30577977]
[1754768169047,1.43468526,116670.0,116660.0,0.69647383]
[1754768169248,1.43468526,116670.0,116660.0,0.73293383]
[1754768172356,1.43468526,116670.0,116660.0,0.39965977]
[1754768172655,1.43468526,116670.0,116660.0,0.73293383]
[1754768172959,1.43468526,116670.0,116660.0,0.39965977]
[1754768173162,1.43468526,116670.0,116660.0,0.28208977]
[1754768173455,1.76795932,116670.0,116660.0,0.12813105]
[1754768174156,1.79548526,116670.0,116660.0,0.12813105]
[1754768176155,1.43468526,116670.0,116660.0,0.12813105]
[1754768176960,2.12875932,116670.0,116660.0,0.12813105]
[1754768177163,1.79548526,116670.0,116660.0,0.12813105]
[1754768178561,1.43468526,116670.0,116660.0,0.12813105]
[1754768178866,1.79548526,116670.0,116660.0,0.12813105]
[1754768180361,1.43468526,116670.0,116660.0,0.12813105]
[1754768180562,1.79548526,116670.0,116660.0,0.12813105]
[1754768183668,1.43468526,116670.0,116660.0,0.12813105]
[1754768183870,1.79548526,116670.0,116660.0,0.12813105]
[1754768184170,1.79548526,116670.0,116660.0,0.15182105]
[1754768186772,2.12875932,116670.0,116660.0,0.12813105]
[1754768186973,2.12875932,116670.0,116660.0,0.15044949]
[1754768187876,2.12875932,116670.0,116660.0,0.23614999]
[1754768188373,1.43468526,116670.0,116660.0,0.23614999]
[1754768188574,1.79548526,116670.0,116660.0,0.15182105]
[1754768188776,1.79548526,116670.0,116660.0,0.25983643]
[1754768189468,1.4622112,116670.0,116660.0,0.25983643]
[1754768189671,1.4622112,116670.0,116660.0,0.0391515]
[1754768189875,0.1335679,116650.0,116640.0,0.54318436]
[1754768190173,1.36643996,116650.0,116640.0,0.73767284]
[1754768190374,1.36643996,116650.0,116640.0,0.80157284]
[1754768190566,1.36643996,116650.0,116640.0,0.3747134]
[1754768191173,1.36643996,116650.0,116640.0,0.3757134]
[1754768191886,1.36643996,116650.0,116640.0,0.70898746]
[1754768192375,1.36743996,116650.0,116640.0,0.71098746]
[1754768192876,1.36743996,116650.0,116640.0,0.72454393]
[1754768194376,1.36743996,116650.0,116640.0,0.63882923]
[1754768194978,1.36743996,116650.0,116640.0,0.74684461]
[1754768197375,1.36743996,116650.0,116640.0,0.32785585]
[1754768198983,1.36743996,116650.0,116640.0,0.21984047]
[1754768199686,1.36743996,116650.0,116640.0,0.55311453]
[1754768201786,1.0341659,116650.0,116640.0,0.55311453]
[1754768201987,1.36743996,116650.0,116640.0,0.21984047]
[1754768202183,1.36743996,116650.0,116640.0,0.55311453]
[1754768202489,1.36688996,116650.0,116640.0,0.55311453]
[1754768203986,1.36688996,116650.0,116640.0,0.66095505]
[1754768204388,1.36688996,116650.0,116640.0,0.55311453]
[1754768204889,1.36688996,116650.0,116640.0,0.66095547]
[1754768206183,1.36688996,116650.0,116640.0,0.55311453]
[1754768206581,1.32906996,116650.0,116640.0,0.55311453]
[1754768206781,1.31957996,116650.0,116640.0,0.55311453]
[1754768207288,1.34242996,116650.0,116640.0,0.55311453]
[1754768207490,1.34242996,116650.0,116640.0,0.21984047]
[1754768207786,1.0091559,116650.0,116640.0,0.55311453]
[1754768207989,1.34242996,116650.0,116640.0,0.55311453]
[1754768208183,1.0091559,116650.0,116640.0,0.55311453]
[1754768208486,1.34242996,116650.0,116640.0,0.55311453]
[1754768208686,1.34242996,116650.0,116640.0,0.91391453]
[1754768209288,0.902238,116650.0,116640.0,1.24718859]
[1754768209489,0.115918,116650.0,116640.0,1.24718859]
[1754768209788,0.115918,116650.0,116640.0,1.35504366]
[1754768210482,0.115918,116650.0,116640.0,1.40152417]
[1754768210878,0.090918,116650.0,116640.0,1.90626223]
[1754768211189,0.65184276,116680.0,116670.0,0.2028432]
[1754768211390,1.77223682,116680.0,116670.0,0.53611726]
[1754768211586,1.79641682,116680.0,116670.0,0.2028432]
[1754768212088,1.79641682,116680.0,116670.0,0.64396878]
[1754768212488,1.1378687,116680.0,116670.0,0.53711726]
[1754768212799,1.80941682,116680.0,116670.0,0.53711726]
[1754768213089,1.80941682,116680.0,116670.0,0.64496878]
[1754768213285,1.80841682,116680.0,116670.0,0.53811726]
[1754768213888,1.72272472,116680.0,116670.0,0.53811726]
[1754768214090,1.1630946,116680.0,116670.0,0.53711726]
[1754768214286,1.83664272,116680.0,116670.0,0.53811726]
[1754768214891,1.83664272,116680.0,116670.0,0.64596878]
[1754768217693,1.1700946,116680.0,116670.0,0.64596878]
[1754768217881,1.83664272,116680.0,116670.0,0.64596878]
[1754768218087,1.75095262,116680.0,116670.0,0.64596878]
[1754768218392,1.75095262,116680.0,116670.0,0.53811726]
[1754768219289,1.0080645,116680.0,116670.0,0.53811726]
[1754768219489,1.36418856,116680.0,116670.0,0.53811726]
[1754768220292,1.38836856,116680.0,116670.0,0.53811726]
[1754768220793,1.72164262,116680.0,116670.0,0.53811726]
[1754768220993,1.38836856,116680.0,116670.0,0.53811726]
[1754768221792,1.72164262,116680.0,116670.0,0.53811726]
[1754768227098,1.72164262,116680.0,116670.0,0.31269472]
[1754768227800,1.72164262,116680.0,116670.0,0.2048432]
[1754768228004,1.0550945,116680.0,116670.0,0.2048432]
[1754768228197,1.72164262,116680.0,116670.0,0.2048432]
[1754768228505,1.72164262,116680.0,116670.0,0.0876932]
[1754768228705,2.08244262,116680.0,116670.0,0.0876932]
[1754768236304,1.72164262,116680.0,116670.0,0.0876932]
[1754768236505,1.0550945,116680.0,116670.0,0.0876932]
[1754768236707,1.72164262,116680.0,116670.0,0.1120532]
[1754768237511,2.08244262,116680.0,116670.0,0.1120532]
[1754768237805,1.0550945,116680.0,116670.0,0.1120532]
[1754768238311,1.72164262,116680.0,116670.0,0.1120532]
[1754768238703,1.0550945,116680.0,116670.0,0.1120532]
[1754768238904,1.72164262,116680.0,116670.0,0.1120532]
[1754768239104,1.72164262,116680.0,116670.0,0.21990472]
[1754768239311,1.0550945,116680.0,116670.0,0.25307472]
[1754768239505,1.72164262,116680.0,116670.0,0.1452232]
[1754768240205,1.0550945,116680.0,116670.0,0.1452232]
[1754768240406,1.72164262,116680.0,116670.0,0.1452232]
[1754768241812,1.0550945,116680.0,116670.0,0.1452232]
[1754768242010,1.72164262,116680.0,116670.0,0.1452232]
[1754768242511,1.0550945,116680.0,116670.0,0.1452232]
[1754768242712,1.72164262,116680.0,116670.0,0.1452232]
[1754768243008,1.0550945,116680.0,116670.0,0.1452232]
[1754768243209,1.72164262,116680.0,116670.0,0.1452232]
[1754768243712,1.0550945,116680.0,116670.0,0.1452232]
[1754768243914,1.72164262,116680.0,116670.0,0.1452232]
[1754768246418,1.72164262,116680.0,116670.0,0.25307472]
[1754768251624,1.72164262,116680.0,116670.0,0.1452232]
[1754768252431,1.0550945,116680.0,116670.0,0.1452232]
[1754768252636,1.72164262,116680.0,116670.0,0.1452232]
[1754768256435,1.0550945,116680.0,116670.0,0.1452232]
[1754768256738,1.0550945,116680.0,116670.0,0.25307472]
[1754768256739,1.72164262,116680.0,116670.0,0.25307472]
[1754768258037,1.0550945,116680.0,116670.0,0.27488472]
[1754768258236,1.72164262,116680.0,116670.0,0.27488472]
[1754768258543,1.72164262,116680.0,116670.0,0.1670332]
[1754768262644,1.0550945,116680.0,116670.0,0.1670332]
[1754768262849,1.72164262,116680.0,116670.0,0.1670332]
[1754768264148,1.0550945,116680.0,116670.0,0.1670332]
[1754768264342,1.72164262,116680.0,116670.0,0.1670332]
[1754768264845,1.72164262,116680.0,116670.0,0.27508845]
[1754768266940,1.72164262,116680.0,116670.0,0.24191845]
[1754768267135,1.72164262,116680.0,116670.0,0.19574845]
[1754768267342,1.72164262,116680.0,116670.0,0.31366845]
[1754768267544,1.0550945,116680.0,116670.0,0.31366845]
[1754768267743,1.72164262,116680.0,116670.0,0.31366845]
[1754768268042,1.72164262,116680.0,116670.0,0.29876845]
[1754768268749,1.0550945,116680.0,116670.0,0.29876845]
[1754768268954,1.72164262,116680.0,116670.0,0.29876845]
[1754768270648,1.72164262,116680.0,116670.0,0.31366845]
[1754768271250,0.998498,116680.0,116670.0,0.57659251]
[1754768271555,1.41745806,116680.0,116670.0,0.53888726]
[1754768272846,0.63033806,116680.0,116670.0,0.53888726]
[1754768273145,1.33801206,116680.0,116670.0,0.53888726]
[1754768273755,1.42369806,116680.0,116670.0,0.53888726]
[1754768274150,1.090424,116680.0,116670.0,0.53888726]
[1754768274351,1.42369806,116680.0,116670.0,0.53888726]
[1754768274546,1.42369806,116680.0,116670.0,0.2056132]
[1754768274751,1.42369806,116680.0,116670.0,0.53888726]
[1754768276056,1.42369806,116680.0,116670.0,0.2056132]
[1754768276258,1.42369806,116680.0,116670.0,0.53888726]
[1754768278757,1.090424,116680.0,116670.0,0.2056132]
[1754768278958,1.42369806,116680.0,116670.0,0.53888726]
[1754768286063,1.090424,116680.0,116670.0,0.53888726]
[1754768286262,1.42369806,116680.0,116670.0,0.53888726]
[1754768286563,1.090424,116680.0,116670.0,0.53888726]
[1754768286759,0.150828,116680.0,116670.0,0.46559726]
[1754768286962,0.965098,116680.0,116670.0,1.23274132]
[1754768287358,0.965098,116680.0,116670.0,0.89946726]
[1754768287866,0.173138,116680.0,116670.0,1.00752251]
[1754768288064,0.965018,116680.0,116670.0,1.00752251]
[1754768289363,0.978538,116680.0,116670.0,1.00752251]
[1754768290356,0.978538,116680.0,116670.0,0.89946726]
[1754768290866,0.978538,116680.0,116670.0,1.00740359]
[1754768292767,1.31181206,116680.0,116670.0,0.89946726]
[1754768293264,0.978538,116680.0,116670.0,0.5661932]
[1754768293459,0.978538,116680.0,116670.0,0.89946726]
[1754768294467,1.003458,116680.0,116670.0,0.89946726]
[1754768296770,1.003458,116680.0,116670.0,0.5661932]
[1754768297062,1.003458,116680.0,116670.0,0.89946726]
[1754768297256,1.003458,116680.0,116670.0,0.67412953]
[1754768297573,1.003458,116680.0,116670.0,1.00740359]
[1754768298768,1.33673206,116680.0,116670.0,1.00740359]
[1754768300164,1.003458,116680.0,116670.0,1.00740359]
[1754768300356,1.003458,116680.0,116670.0,0.67412953]
[1754768300563,1.33673206,116680.0,116670.0,1.00740359]
[1754768301673,1.003458,116680.0,116670.0,1.00740359]
[1754768302870,1.003458,116680.0,116670.0,0.5661932]
[1754768303071,1.003458,116680.0,116670.0,0.89946726]
[1754768303875,1.003458,116680.0,116670.0,0.67407298]
[1754768304171,1.003458,116680.0,116670.0,1.00734704]
[1754768304365,1.003458,116680.0,116670.0,1.00734922]
[1754768304761,1.003458,116680.0,116670.0,0.89946726]
[1754768305574,1.003458,116680.0,116670.0,1.00734922]
[1754768306172,1.003458,116680.0,116670.0,0.89946726]
[1754768308775,1.42241826,116680.0,116670.0,0.5196432]
[1754768309076,1.42241826,116680.0,116670.0,0.89946726]
[1754768309572,1.42241826,116680.0,116670.0,0.5661932]
[1754768309869,1.42241826,116680.0,116670.0,0.89946726]
[1754768310376,1.42241826,116680.0,116670.0,0.78176726]
[1754768310567,1.42241826,116680.0,116670.0,0.80518726]
[1754768310971,1.42241826,116680.0,116670.0,0.88665726]
[1754768311171,1.42241826,116680.0,116670.0,0.90025726]
[1754768312368,1.42241826,116680.0,116670.0,0.5204332]
[1754768312573,1.75569232,116680.0,116670.0,0.55643197]
[1754768312770,1.75569232,116680.0,116670.0,0.19563197]
[1754768312975,1.75569232,116680.0,116670.0,0.0876932]
[1754768313174,1.75569232,116680.0,116670.0,0.0876935]
[1754768313372,1.75569232,116680.0,116670.0,0.19563227]
[1754768313776,1.75569232,116680.0,116670.0,0.0876935]
[1754768315073,1.75569232,116680.0,116670.0,0.19563227]
[1754768315377,1.75569232,116680.0,116670.0,0.0876935]
[1754768315578,1.82339911,116680.0,116670.0,0.0876935]
[1754768316167,1.75569232,116680.0,116670.0,0.0876935]
[1754768316580,1.75569232,116680.0,116670.0,0.19563227]
[1754768317376,1.75569232,116680.0,116670.0,0.0876935]
[1754768318179,1.75569232,116680.0,116670.0,0.19563227]
[1754768319076,1.75569232,116680.0,116670.0,0.0876935]
[1754768320681,1.75569232,116680.0,116670.0,0.002]
[1754768321069,1.82555835,116680.0,116670.0,0.002]
[1754768321277,1.15901023,116680.0,116670.0,0.0876935]
[1754768321475,1.82555835,116680.0,116670.0,0.0876935]
[1754768329186,1.82555835,116680.0,116670.0,0.19563227]
[1754768332582,1.15901023,116680.0,116670.0,0.19563227]
[1754768332784,1.82555835,116680.0,116670.0,0.19563227]
[1754768336484,1.82555835,116680.0,116670.0,0.21986227]
[1754768339293,1.82555835,116680.0,116670.0,0.29158227]
[1754768339484,1.15901023,116680.0,116670.0,0.31522227]
[1754768339685,1.82555835,116680.0,116670.0,0.2072835]
[1754768341999,1.15901023,116680.0,116670.0,0.2072835]
[1754768342186,1.82555835,116680.0,116670.0,0.2072835]
[1754768343896,1.80063835,116680.0,116670.0,0.2072835]
[1754768344095,1.82560835,116680.0,116670.0,0.2072835]
[1754768345690,1.82560835,116680.0,116670.0,0.31522227]
[1754768349498,1.15906023,116680.0,116670.0,0.31522227]
[1754768349700,1.82560835,116680.0,116670.0,0.31522227]
[1754768350199,1.82560835,116680.0,116670.0,0.2072835]
[1754768351404,1.82560835,116680.0,116670.0,0.31522227]
[1754768353303,1.15906023,116680.0,116670.0,0.30127227]
[1754768353503,1.82560835,116680.0,116670.0,0.30127227]
[1754768357496,1.82560835,116680.0,116670.0,0.1933335]
[1754768357705,1.82560835,116680.0,116670.0,0.2081535]
[1754768357706,1.15906023,116680.0,116670.0,0.2081535]
[1754768358003,1.82560835,116680.0,116670.0,0.2081535]
[1754768358397,1.15906023,116680.0,116670.0,0.2081535]
[1754768358592,1.82560835,116680.0,116670.0,0.2081535]
[1754768360797,1.82560835,116680.0,116670.0,0.2078935]
[1754768361805,1.46736429,116680.0,116670.0,0.90196756]
[1754768362001,1.49219429,116680.0,116670.0,0.90196756]
[1754768362207,1.82546835,116680.0,116670.0,0.90196756]
[1754768362505,1.82546835,116680.0,116670.0,0.5686935]
[1754768363005,1.15892023,116680.0,116670.0,0.5686935]
[1754768363198,1.82546835,116680.0,116670.0,0.5686935]
[1754768363407,1.82546835,116680.0,116670.0,1.00990633]
[1754768364194,1.15892023,116680.0,116670.0,0.67663227]
[1754768364406,1.82546835,116680.0,116670.0,0.67663227]
[1754768365206,1.82546835,116680.0,116670.0,1.00990633]
[1754768365609,1.15892023,116680.0,116670.0,1.00990633]
[1754768365806,1.03358835,116680.0,116670.0,1.00990633]
[1754768366105,1.82638835,116680.0,116670.0,1.00990633]
[1754768366309,1.15984023,116680.0,116670.0,1.00990633]
[1754768366511,1.82638835,116680.0,116670.0,1.00990633]
[1754768368714,1.82638835,116680.0,116670.0,0.90196756]
[1754768369406,1.82638835,116680.0,116670.0,0.54116756]
[1754768369910,1.82638835,116680.0,116670.0,0.2078935]
[1754768373601,1.82638835,116680.0,116670.0,0.1930735]
[1754768374110,1.82638835,116680.0,116670.0,0.1603635]
[1754768374410,1.15984023,116680.0,116670.0,0.1603635]
[1754768374607,1.82638835,116680.0,116670.0,0.1603635]
[1754768378011,1.82638835,116680.0,116670.0,0.1346935]
[1754768378208,1.82638835,116680.0,116670.0,0.1119235]
[1754768379102,1.82638835,116680.0,116670.0,0.21986227]
[1754768381211,1.82638835,116680.0,116670.0,0.10993877]
[1754768381412,2.15966241,116680.0,116670.0,0.10993877]
[1754768381708,2.52046241,116680.0,116650.0,0.70914058]
[1754768382006,0.77697902,116660.0,116650.0,0.75762058]
[1754768382205,1.57113902,116660.0,116650.0,0.210485]
[1754768382409,1.57113902,116660.0,116650.0,0.194005]
[1754768382608,1.57113902,116660.0,116650.0,0.554805]
[1754768382807,1.57113902,116660.0,116650.0,0.648715]
[1754768383009,1.23786496,116660.0,116650.0,0.98298906]
[1754768383220,1.57113902,116660.0,116650.0,0.572285]
[1754768383417,1.23786496,116660.0,116650.0,0.93755906]
[1754768383711,1.23786496,116660.0,116650.0,0.96835906]
[1754768383905,1.23886496,116660.0,116650.0,0.98598906]
[1754768384413,1.23886496,116660.0,116650.0,0.98498906]
[1754768384609,1.23886496,116660.0,116650.0,0.98598906]
[1754768385214,1.24586496,116660.0,116650.0,0.98598906]
[1754768385513,1.36078296,116660.0,116650.0,0.98598906]
[1754768386012,1.69305702,116660.0,116650.0,0.98398906]
[1754768386218,1.69605702,116660.0,116650.0,0.98398906]
[1754768387917,1.0295089,116660.0,116650.0,0.98398906]
[1754768388117,1.69605702,116660.0,116650.0,0.98398906]
[1754768388513,1.36278296,116660.0,116650.0,0.98398906]
[1754768389815,1.69605702,116660.0,116650.0,0.98398906]
[1754768390515,1.0295089,116660.0,116650.0,0.650715]
[1754768390719,1.69605702,116660.0,116650.0,0.98398906]
[1754768391917,1.69605702,116660.0,116650.0,0.650715]
[1754768392416,1.69605702,116660.0,116650.0,0.98398906]
[1754768392615,1.69605702,116660.0,116650.0,0.650715]
[1754768392816,1.69605702,116660.0,116650.0,0.98398906]
[1754768393913,1.69605702,116660.0,116650.0,0.650715]
[1754768394619,1.69605702,116660.0,116650.0,0.98398906]
[1754768394921,1.69605702,116660.0,116650.0,0.650715]
[1754768395520,1.69605702,116660.0,116650.0,0.75866134]
[1754768397321,1.69605702,116660.0,116650.0,0.98398906]
[1754768397818,1.69605702,116660.0,116650.0,0.650715]
[1754768398120,1.69605702,116660.0,116650.0,1.0919354]
[1754768399418,1.69605702,116660.0,116650.0,0.7311354]
[1754768399618,1.69605702,116660.0,116650.0,0.98398906]
[1754768399814,1.69605702,116660.0,116650.0,0.75866363]
[1754768402323,1.69605702,116660.0,116650.0,0.650715]
[1754768404219,1.36278296,116660.0,116650.0,0.650715]
[1754768404413,1.69605702,116660.0,116650.0,0.650715]
[1754768404721,1.69605702,116660.0,116650.0,0.98398906]
[1754768408923,1.69605702,116660.0,116650.0,1.0919859]
[1754768409923,1.69605702,116660.0,116650.0,0.75871184]
[1754768410824,1.69605702,116660.0,116650.0,1.0919859]
[1754768416639,1.69605702,116660.0,116650.0,0.75871184]
[1754768416837,1.69605702,116660.0,116650.0,1.0919859]
[1754768419035,1.69605702,116660.0,116650.0,0.98398906]
[1754768421338,1.69605702,116660.0,116650.0,0.650715]
[1754768430744,1.69605702,116660.0,116650.0,0.75879656]
[1754768431344,1.69605702,116660.0,116650.0,0.650715]
[1754768432946,1.69605702,116660.0,116650.0,0.80505058]
[1754768433349,1.69605702,116660.0,116650.0,0.75942058]
[1754768433540,1.69605702,116660.0,116650.0,0.39862058]
[1754768433740,1.69605702,116660.0,116650.0,0.43147058]
[1754768433941,1.69605702,116660.0,116650.0,0.44622058]
[1754768437760,1.69605702,116660.0,116650.0,0.291885]
[1754768438554,1.69605702,116660.0,116650.0,0.44622058]
[1754768441255,1.0295089,116660.0,116650.0,0.44622058]
[1754768441455,1.69605702,116660.0,116650.0,0.77949464]
[1754768442356,1.69605702,116660.0,116650.0,0.44622058]
[1754768442551,1.69605702,116660.0,116650.0,0.77949464]
[1754768444856,1.0295089,116660.0,116650.0,0.77949464]
[1754768445154,1.69605702,116660.0,116650.0,0.77949464]
[1754768445756,1.69605702,116660.0,116650.0,0.62515906]
[1754768447061,1.69605702,116660.0,116650.0,0.39995598]
[1754768447250,1.69605702,116660.0,116650.0,0.73323004]
[1754768450152,1.0295089,116660.0,116650.0,0.73323004]
[1754768450357,1.36278296,116660.0,116650.0,1.09403004]
[1754768451651,0.923468,116660.0,116650.0,1.09403004]
[1754768451852,1.0091689,116660.0,116650.0,1.09403004]
[1754768452161,1.0231489,116660.0,116650.0,0.98595906]
[1754768452559,1.35642296,116660.0,116650.0,0.98595906]
[1754768453862,1.0231489,116660.0,116650.0,0.98595906]
[1754768454053,1.0091689,116660.0,116650.0,0.98595906]
[1754768454255,0.913598,116660.0,116650.0,0.98595906]
[1754768454956,0.913598,116660.0,116650.0,1.31923312]
[1754768455156,0.913598,116660.0,116650.0,0.98595906]
[1754768456360,0.913598,116660.0,116650.0,1.14029464]
[1754768457864,0.913598,116660.0,116650.0,1.50109464]
[1754768458664,1.0229191,116660.0,116650.0,1.50109464]
[1754768458963,1.27049206,116660.0,116650.0,1.50109464]
[1754768459562,1.27049206,116660.0,116650.0,1.34675906]
[1754768460660,0.937218,116660.0,116650.0,1.34675906]
[1754768461063,1.27049206,116660.0,116650.0,1.34675906]
[1754768461566,0.937218,116660.0,116650.0,1.34675906]
[1754768464172,0.937218,116660.0,116650.0,1.45476392]
[1754768465072,0.937218,116660.0,116650.0,1.34675906]
[1754768469071,0.937218,116660.0,116650.0,1.45476392]
[1754768472572,0.937218,116660.0,116650.0,1.6090995]
[1754768472776,0.937218,116660.0,116650.0,1.50109464]
[1754768473677,0.923238,116660.0,116650.0,1.50109464]
[1754768473975,0.938208,116660.0,116650.0,1.50109464]
[1754768475079,0.938208,116660.0,116650.0,1.16782058]
[1754768475270,0.938208,116660.0,116650.0,1.50109464]
[1754768476177,0.938208,116660.0,116650.0,1.14029464]
[1754768476880,0.938208,116660.0,116650.0,0.80702058]
[1754768477280,0.938208,116660.0,116650.0,1.14029464]
[1754768477783,0.938208,116660.0,116650.0,0.80702058]
[1754768477980,0.938208,116660.0,116650.0,1.14029464]
[1754768479983,1.27148206,116660.0,116650.0,1.14029464]
[1754768481084,1.35718356,116660.0,116650.0,1.14029464]
[1754768481284,1.35718356,116660.0,116650.0,0.75942058]
[1754768481484,1.35718356,116660.0,116650.0,1.12746464]
[1754768481878,1.35718356,116660.0,116650.0,1.14113464]
[1754768482686,1.27148206,116660.0,116650.0,1.14113464]
[1754768482988,1.35718356,116660.0,116650.0,1.14113464]
[1754768483886,1.0239095,116660.0,116650.0,0.80786058]
[1754768484086,1.35718356,116660.0,116650.0,1.14113464]
[1754768485388,1.35718356,116660.0,116650.0,1.12746464]
[1754768485592,1.35718356,116660.0,116650.0,1.14113464]
[1754768487984,1.27148206,116660.0,116650.0,1.14113464]
[1754768491094,1.27148206,116660.0,116650.0,0.98679906]
[1754768492984,1.27148206,116660.0,116650.0,1.34759906]
[1754768493398,1.27148206,116660.0,116650.0,1.014325]
[1754768493693,1.27148206,116660.0,116650.0,1.34759906]
[1754768494093,1.27148206,116660.0,116650.0,0.62599906]
[1754768494397,1.27148206,116660.0,116650.0,1.34759906]
[1754768495192,0.149528,116660.0,116650.0,1.34759906]
[1754768495404,0.912358,116660.0,116650.0,1.4556382]
[1754768495590,0.936468,116660.0,116650.0,1.4556382]
[1754768499796,0.912358,116660.0,116650.0,1.78891226]
[1754768500199,0.912358,116660.0,116650.0,1.4556382]
[1754768500595,0.912358,116660.0,116650.0,1.78891226]
[1754768501307,0.912358,116660.0,116650.0,1.4556382]
[1754768501695,0.926578,116660.0,116650.0,1.4556382]
[1754768501896,0.936468,116660.0,116650.0,1.4556382]
[1754768502604,0.936468,116660.0,116650.0,1.014325]
[1754768502903,0.936468,116660.0,116650.0,1.34759906]
[1754768506405,0.936468,116660.0,116650.0,1.50193464]
[1754768507397,0.936468,116660.0,116650.0,1.16866058]
[1754768507599,0.936468,116660.0,116650.0,1.50193464]
[1754768508703,0.936468,116660.0,116650.0,1.16866058]
[1754768508903,0.936468,116660.0,116650.0,1.50193464]
[1754768509804,0.936468,116660.0,116650.0,1.34759906]
[1754768510704,0.922248,116660.0,116650.0,1.34759906]
[1754768511105,0.922248,116660.0,116650.0,1.68087312]
[1754768511501,0.936468,116660.0,116650.0,1.68087312]
[1754768512300,0.936468,116660.0,116650.0,1.78890332]
[1754768513204,0.936468,116660.0,116650.0,1.68087312]
[1754768514009,0.936468,116660.0,116650.0,1.50193464]
[1754768514806,0.936468,116660.0,116650.0,1.34759906]
[1754768517020,0.936468,116660.0,116650.0,0.73404402]
[1754768517207,0.936468,116660.0,116650.0,1.45564402]
[1754768517705,0.936468,116660.0,116650.0,1.12236996]
[1754768518011,0.936468,116660.0,116650.0,1.45564402]
[1754768519312,0.936468,116660.0,116650.0,1.34759906]
[1754768520712,0.912358,116660.0,116650.0,1.34759906]
[1754768520912,0.912358,116660.0,116650.0,1.68087312]
[1754768521115,0.922248,116660.0,116650.0,1.68087312]
[1754768521315,0.936468,116660.0,116650.0,1.68087312]
[1754768521711,0.5420387,116700.0,116690.0,0.0856795]
[1754768522020,1.66267276,116700.0,116690.0,0.55022589]
[1754768522214,1.2579423,116700.0,116690.0,0.63043589]
[1754768522513,1.92449042,116700.0,116690.0,0.64462589]
[1754768522708,1.2579423,116700.0,116690.0,0.31135183]
[1754768522909,1.99206216,116700.0,116690.0,0.31135183]
[1754768523417,1.99206216,116700.0,116690.0,0.52238356]
[1754768523626,1.63126216,116700.0,116690.0,0.52238356]
[1754768523909,1.63126216,116700.0,116690.0,0.6418468]
[1754768524117,1.63926216,116700.0,116690.0,0.6418468]
[1754768524317,0.97871404,116700.0,116690.0,0.20152041]
[1754768524519,1.64526216,116700.0,116690.0,0.53479447]
[1754768525012,1.63626216,116700.0,116690.0,0.53379447]
[1754768525317,1.64026216,116700.0,116690.0,0.20152041]
[1754768525812,1.64026216,116700.0,116690.0,0.15900041]
[1754768526015,1.64026216,116700.0,116690.0,0.12131041]
[1754768526516,0.97371404,116700.0,116690.0,0.12131041]
[1754768526817,1.64026216,116700.0,116690.0,0.12131041]
[1754768528219,0.97371404,116700.0,116690.0,0.12131041]
[1754768528523,1.64026216,116700.0,116690.0,0.12131041]
[1754768530717,0.97371404,116700.0,116690.0,0.12131041]
[1754768531111,1.64026216,116700.0,116690.0,0.12131041]
[1754768532112,0.97371404,116700.0,116690.0,0.12131041]
[1754768532421,1.64026216,116700.0,116690.0,0.12131041]
[1754768533421,0.97371404,116700.0,116690.0,0.12131041]
[1754768533621,1.64026216,116700.0,116690.0,0.48211041]
[1754768534119,0.97371404,116700.0,116690.0,0.48211041]
[1754768534519,0.97371404,116700.0,116690.0,0.81538447]
[1754768534715,0.97371404,116700.0,116690.0,0.12131041]
[1754768534916,0.97371404,116700.0,116690.0,0.81538447]
[1754768535119,0.97371384,116700.0,116690.0,0.57734041]
[1754768535425,0.88804174,116700.0,116690.0,0.91061447]
[1754768535715,0.03311,116700.0,116690.0,0.57734041]
[1754768535919,0.82995,116700.0,116690.0,0.68539274]
[1754768536315,1.16322406,116700.0,116690.0,1.0186668]